Workbook

Sheet RCS-4
A1: Deferred Taxes Related to Bonus Depreciation | M1: Exhibit No.__(RCS-04)
A2: Illustration of Accounting and Ratemaking Treatment | M2: Page 1 of 1
A4: Line
A5: No. | C5: Description | E5: Amount | I5: Description | K5: Amount
C6: Year 1: | I6: Year 2:
A7: 1 | C7: Plant in Service | E7: 6500000 | I7: Plant in Service | K7: 6500000
A8: =A7+1 -> 2 | C8: Revenues | E8: 1000000 | I8: Revenues | K8: 1200000
A9: =A8+1 -> 3 | C9: O&M Expenses | E9: 640000 | I9: O&M Expenses | K9: 640000
A10: 4 | C10: Plant Additions During Year | E10: 500000 | I10: Plant Additions During Year | K10: 0
A11: 5 | C11: Assume all qualifying for bonus depreciation | I11: Assume all qualifying for bonus depreciation
A12: 6 | C12: Bonus Depreciation | E12: 500000 | I12: Bonus Depreciation | K12: 0
A13: 7 | C13: Other Accelerated Depr. | E13: 300000 | I13: Other Accelerated Depr. | K13: 340000
A14: 8 | C14: Accelerated Depr. On pre-year 1 additions | I14: Accelerated Depr. On pre-year 1 additions
A15: 9 | C15: Book Depreciation | E15: 160000 | I15: Book Depreciation | K15: 160000
A16: 10 | C16: Straight-line on total plant | I16: Straight-line on total plant
A17: 11
A18: 12 | C18: Current FIT: | I18: Current FIT:
A19: 13 | C19: Revenues | E19: =+E8 -> 1000000 | I19: Revenues | K19: =+K8 -> 1200000
A20: 14 | C20: O&M | E20: =+E9 -> 640000 | I20: O&M | K20: =+K9 -> 640000
A21: 15 | C21: Tax Depreciation | E21: =+E12+E13 -> 800000 | I21: Tax Depreciation | K21: =+K12+K13 -> 340000
A22: 16 | C22: Taxable Income (Loss) NOL Carry-forward | E22: =+E19-E20-E21 -> -440000 | I22: Taxable Income (Loss) NOL Carry-forward | K22: =+K19-K20-K21 -> 220000
A23: 17 | C23: Current FIT | E23: 0 | I23: Loss Carry-Forward Used | K23: -220000
A24: 18 | I24: Net Taxable Income | K24: 0
A25: 19 | I25: Current FIT: | K25: 0
A26: 20
A27: 21 | C27: Deferred FIT | I27: Deferred FIT
A28: 22 | C28: Tax Depreciation | E28: 800000 | I28: Tax Depreciation | K28: 340000
A29: 23 | C29: Book Depreciation | E29: 160000 | I29: Book Depreciation | K29: 160000
A30: 24 | C30: Difference | E30: =E28-E29 -> 640000 | I30: Difference | K30: =K28-K29 -> 180000
A31: 25 | C31: x 35% tax rate | E31: =E30*0.35 -> 224000 | G31: Deferred FIT | I31: x 35% tax rate | K31: =K30*0.35 -> 63000 | M31: Deferred FIT
A32: 26
A33: 27 | C33: Excess Tax Depreciation | E33: 640000 | G33: 1 | I33: Total Loss Carry-forward Year 1 | K33: 440000
A34: 28 | C34: Tax Loss Carry-forward | E34: -440000 | G34: =E34/E33*-1 -> 0.6875 | I34: Loss Carry-forward Used Year 2 | K34: 220000
A35: 29 | C35: Deduction used in Year 1 | E35: =E34+E33 -> 200000 | G35: =E35/E33 -> 0.3125 | I35: Percentage Loss Carry-Forward Used | K35: =K34/K33 -> 0.5
A36: 30
A37: 31 | C37: Deferred FIT Expense Total | E37: 224000 | G37: 1 | I37: Deferred FIT Carry-forward Year 1 | K37: 154000
A38: 32 | C38: Deferred FIT Carry-Forward | E38: =E37*G34 -> 154000 | G38: =E38/E37 -> 0.6875 | I38: Deferred FIT Carry-forward Used Year 2 | K38: =K35*K37 -> 77000
A39: 33 | C39: Deferred FIT for Deductions Used in Year 1 | E39: =E37*G35 -> 70000 | G39: =E39/E37 -> 0.3125 | I39: Remaining FIT Carry-forward Year 1 | K39: =K37-K38 -> 77000
A40: 34 | I40: FIT Carry-forward Year 2 | K40: 63000
A41: 35
A42: 36 | C42: Entries to record deferred income taxes | I42: Entries to record deferred income taxes
A43: 37 | E43: Debit | G43: Credit | K43: Debit | M43: Credit
A44: 38 | I44: Carry-forward Used
A45: 39 | C45: Deferred FIT Expense | E45: 224000 | I45: Deferred FIT Expense | K45: 77000
A46: 40 | C46: ADIT | G46: 224000 | I46: Deferred FIT Asset | M46: 77000
A47: 41
A48: 42 | C48: Deferred FIT Asset | E48: 154000 | I48: Year 2 Deferred FIT
A49: 43 | C49: Deferred FIT Expense | G49: 154000 | I49: Deferred FIT Expense | K49: 63000
A50: 44 | I50: ADIT | M50: 63000
A51: 45
A52: 46 | I52: Deferred FIT Asset | K52: 63000
A53: 47 | I53: Deferred FIT Expense | M53: 63000
A54: 48
A55: 49 | E55: Debit | G55: Credit | K55: Debit | M55: Credit
A56: 50 | C56: 2 year cumulative balances
A57: 51 | C57: ADIT Year 1 | G57: 224000 | I57: Deferred FIT Expense Year 1 | K57: 224000
A58: 52 | C58: ADIT Year 2 | G58: 63000 | I58: Deferred FIT Expense Year 1 | M58: 154000
A59: 53
A60: 54 | C60: Deferred FIT Asset Year 1 | E60: 154000 | I60: Deferred FIT Expense Year 2 | K60: 77000
A61: 55 | C61: Deferred FIT Asset Year 2 | G61: 77000 | I61: Deferred FIT Expense Year 2 | K61: 63000
A62: 56 | C62: Deferred FIT Asset Year 2 | E62: 63000 | I62: Deferred FIT Expense Year 2 | M62: 63000
A63: 57
A64: 58 | C64: Total | E64: =SUM(E57:E62) -> 217000 | G64: =SUM(G57:G62) -> 364000 | K64: =SUM(K57:K62) -> 364000 | M64: =SUM(M57:M62) -> 217000
A65: 59 | I65: Net Income Statement Impact
A66: 60 | C66: Net balance sheet impact (net ADIT) | G66: =G64-E64 -> 147000 | I66: Net Deferred FIT Expense | K66: =K64-M64 -> 147000
A68: Source: Original illustration similar to this was from a presentation by a KPMG representative at the NARUC 2011 Fall Accounting Conference in Denver, CO
